{"text_format":"1","workbook":"xlsx","n_sheets":4,"sheets":["Transfer","Overall_table","Language","Help"],"not_rendered":{"charts":0,"images":0,"macros":1,"external_links":0,"defined_names":0,"comments":0,"pivot_tables":0},"unopened":[],"bounds":{"document_bytes":16777216,"sheet_cells":100000,"rows_first":2000,"rows_last":500,"rows_between":2000,"halvings":0,"cell_chars":16384,"cell_head_chars":4096},"cells_cut":0,"cells_raw":0,"read":"whole","date_system":"1900"}

{"sheet":"Transfer","index":0,"n_rows":12,"n_cols":10,"rows_kept":12,"cut":false,"hidden":false,"merged":[[0,1,0,4],[28,0,28,5],[4,1,4,4],[5,1,6,4],[17,1,18,4],[19,1,20,4],[8,1,8,4]]}
[null,{"$f":"Language!E7","v":"Read and transfer files"},null,null,null,null,null,null,null,"Vers. 1.1\n2026-08-03"]
[]
[]
[]
[null,{"$f":"Language!$E$27","v":"Directory path (optional):"}]
[]
[]
[]
[]
[]
[]
[null,null,5,2,1]

{"sheet":"Overall_table","index":1,"n_rows":3,"n_cols":19,"rows_kept":3,"cut":false,"hidden":false,"merged":[[2,10,2,12]]}
[null,{"$f":"Language!$E$24","v":"Overall table"}]
[]
[null,{"$f":"Language!$E$9","v":"No."},{"$f":"Language!$E$10","v":"Name"},{"$f":"Language!$E$11","v":"Pl"},{"$f":"Language!$E$12","v":"W"},{"$f":"Language!$E$13","v":"D"},{"$f":"Language!$E$14","v":"L"},{"$f":"Language!$E$15","v":"BH"},{"$f":"Language!$E$16","v":"FBH"},{"$f":"Language!$E$17","v":"Byes"},{"$f":"Language!$E$18","v":"Match points"},{"$f":"Language!$E$10","v":"Name"},{"$f":"Language!$E$10","v":"Name"},{"$f":"Language!$E$19","v":"Diff."},{"$f":"Language!$E$20","v":"Pts"},{"$f":"Language!$E$22","v":"FBH/Match"},{"$f":"Language!$E$21","v":"BH/Match"},{"$f":"Language!$E$23","v":"Pts/Match"},"Ranking value"]

{"sheet":"Language","index":2,"n_rows":62,"n_cols":15,"rows_kept":62,"cut":false,"hidden":false,"merged":[[2,11,3,11],[0,5,0,9],[0,11,0,12],[1,5,1,9],[2,3,3,3],[2,4,3,4],[2,5,3,5],[2,6,3,6],[2,7,3,7],[2,8,3,8],[2,9,3,9],[2,10,3,10]]}
[null,null,null,null,null,{"$f":"Language!$E$5","v":"Choose language"},null,null,null,null,null,{"$f":"Language!$E$30","v":"Click here and choose language:"},null,"english","←"]
[]
[null,"english",{"$f":"IF(AND($N$1<>B4,$N$1<>B5,$N$1<>B6,$N$1<>B7,$N$1<>B27,$N$1<>B28),1,0)","v":1},null,null,"english","spanish","italian","french","german","dutch","my language"]
[null,"spanish",{"$f":"IF($N$1=B4,1,0)","v":0}]
[null,"italian",0,null,{"$f":"IF($C$3,F5,IF($C$4,G5,IF($C$5,H5,IF($C$6,I5,IF($C$7,J5,IF($C$27,K5,IF(L5<>\"\",L5,F5)))))))","v":"Choose language"},"Choose language","Elección de la lengua","Scelta della lingua","Choix de langue","Wahl der Sprache","Kies taal"]
[null,"french",0,null,"Instructions","Instructions","Instrucciones","Istruzioni","Instructions","Anleitung","Handleiding"]
[null,"german",0,null,"Read and transfer files","Read and transfer files","Leer y transferir archivos","Leggere e trasferire file","Lire et transférer des fichiers","Dateien lesen und übertragen","Gegevens lezen en plaatsen"]
[null,null,null,null,0]
[null,null,null,null,"No.","No.","N°","No","N°","Nr.","Nr."]
[null,null,null,null,"Name","Name","Nombre","Nome","Nom","Name","Naam"]
[null,null,null,null,"Pl","Pl","Pl","Pl","Pl","Sp","Pl"]
[null,null,null,null,"W","W","W","W","W","G","W"]
[null,null,null,null,"D","D","D","D","D","U","D"]
[null,null,null,null,"L","L","L","L","L","V","L"]
[null,null,null,null,"BH","BH","BH","BH","BH","BH","BH"]
[null,null,null,null,"FBH","FBH","FBH","FBH","FBH","FBH","FBH"]
[null,null,null,null,"Byes","Byes","Byes","Byes","Byes","Freilose","Byes"]
[null,null,null,null,"Match points","Match points","Match points","Match points","Match points","Spielpunkte","Match points"]
[null,null,null,null,"Diff.","Diff.","Diff.","Diff.","Diff.","Diff.","Diff."]
[null,null,null,null,"Pts","Pts","Pts","Pts","Pts","Pkt","Pts"]
[null,null,null,null,"BH/Match","BH/Match","BH/Match","BH/Match","BH/Match","BH/Spiel","BH/Match"]
[null,null,null,null,"FBH/Match","FBH/Match","FBH/Match","FBH/Match","FBH/Match","FBH/Spiel","FBH/Match"]
[null,null,null,null,"Pts/Match","Pts/Match","Pts/Match","Pts/Match","Pts/Match","Pkt/Spiel","Pts/Match"]
[null,null,null,null,"Overall table","Overall table","Tabla general","Tabella generale","Tableau général","Gesamttabelle","Overzichtstabel"]
[null,null,null,null,0]
[null,null,null,null,0]
[null,"dutch",0,null,"Directory path (optional):","Directory path (optional):","Ruta del directorio (opcional):","Percorso della directory (opzionale):","Chemin du répertoire (facultatif) :","Verzeichnispfad (optional):","Bestandslocatie (optioneel):"]
[null,"my language",0,null,"File name of the Excel World Cup schedule:","File name of the Excel World Cup schedule:","Nombre de archivo de la hoja de cálculo de Excel de la Copa Mundial:","Nome file del foglio di calcolo excel della Coppa del Mondo:","Nom de fichier de la feuille de calcul Excel de la Coupe du monde :","Dateiname des WM-Spielplans:","Naam van het Excel-speelschema:"]
[null,null,null,null,"Transfer:","Transfer:","Transferir:","Trasferimento:","Transférer:","Transfer:","Transfer:"]
[null,null,null,null,"Click here and choose language:","Click here and choose language:","Haga clic aquí y elija el idioma:","Clicca qui e scegli la lingua:","Cliquez ici et choisissez la langue :","Hier klicken und Sprache wählen:","Klik hier en kies uw taal:"]
[null,null,null,null,"Open Excel World Cup schedule…","Open Excel World Cup schedule…","abrir la hoja de cálculo de Excel de la Copa del Mundo…","Apri il foglio di calcolo excel della Coppa del Mondo…","ouvrir la feuille de calcul Excel de la Coupe du monde ...","Alle Turniere auslesen...","WK-speelschema openen…","Alle Turniere auslesen..."]
[null,null,null,null,"Files are being transferred - please wait…","Files are being transferred - please wait…","Los archivos se están transfiriendo - espere por favor…","I file vengono trasferiti - attendere prego…","Les fichiers sont en cours de transfert - s'il vous plaît, attendez…","Dateien werden gelesen - bitte warten…","Bestanden worden over gezet - even wachten aub…","Dateien werden gelesen - bitte warten…"]
[null,null,null,null,"Finished!","Finished!","¡Acabado!","Finito!","Achevé!","Fertig!","Klaar!"]
[null,null,null,null,"Please enter filename!","Please enter filename!","¡Por favor ingrese el nombre del archivo!","Per favore inserisci il nome del file!","Veuillez saisir le nom du fichier !","Bitte den Dateinamen eingeben!","Geef aub een bestandsnaam op!"]
[null,null,null,null,"No files were transferred","No files were transferred","No se transfirieron archivos","Nessun file è stato trasferito","Aucun fichier n'a été transféré","Es wurden keine Dateien übertragen","Er zijn geen gegevens overgezet"]
[null,null,null,null,"1 file was transferred","1 file was transferred","1 archivo fue transferido","1 file è stato trasferito","1 fichier a été transféré","Es wurde 1 Datei übertragen","Er is 1 bestand overgezet"]
[null,null,null,null," "," ","Se transfirieron ","Sono stati trasferiti "," ","Es wurden ","Er zijn  "]
[null,null,null,null," files were transferred"," files were transferred"," archivos"," file"," fichiers ont été transférés"," Dateien übertragen","gegevens overgezet"]
[null,null,null,null,null,"Help"]
[null,null,null,null,{"$f":"IF($C$3,F40,IF($C$4,G40,IF($C$5,H40,IF($C$6,I40,IF($C$7,J40,IF($C$27,K40,IF(L40<>\"\",L40,F40)))))))","v":0}]
[null,null,null,null,"If the files are in a separate folder, the path of the folder must be specified - either as an absolute path (e.g. 'D:\\My Documents\\Excel') or as a relative path (e.g '..\\Data\\excel') or as a network path (e.g. '//host/data/excel/').","If the files are in a separate folder, the path of the folder must be specified - either as an absolute path (e.g. 'D:\\My Documents\\Excel') or as a relative path (e.g '..\\Data\\excel') or as a network path (e.g. '//host/data/excel/').","Si los archivos están en una carpeta separada, se debe especificar la ruta de la carpeta, ya sea como una ruta absoluta (por ejemplo, 'D:\\Mis documentos\\Excel') o como una ruta relativa (por ejemplo, ' ..\\Datos\\excel') o como una ruta de red (por ejemplo, '//host/data/excel/').","Se i file si trovano in una cartella separata, è necessario specificare il percorso della cartella, sia come percorso assoluto (ad esempio 'D:\\My Documents\\Excel') o come percorso relativo (ad esempio ' ..\\Dati\\excel') o come percorso di rete (ad es. '//host/data/excel/').","Si les fichiers se trouvent dans un dossier séparé, le chemin du dossier doit être spécifié - soit comme chemin absolu (par exemple 'D:\\Mes Documents\\Excel') ou comme chemin relatif (par exemple ' ..\\data\\excel') ou comme chemin réseau (par exemple '//host/data/excel/').","Wenn sich die Dateien in einem separaten Ordner befinden, muss der Pfad des Ordners angegeben werden - entweder als absoluter Pfad (z. B. 'D:\\Eigene Dateien\\Excel') oder als relativer Pfad (z. B. '..\\Data\\excel') oder als Netzwerkpfad (z. B. '//host/data/excel/').","Als het bestand in een aparte folder staat, moet de absolute bestandsnaam opgegeven worden. (b.v. 'D:\\My Documents\\Excel') of as relatieve bestandsnaam (b.v. '..\\Data\\Excel') or as a network path (e.g. '//host/data/excel/')."]
[null,null,null,null,"Files that do not have the extension .xlsx are skipped.","Files that do not have the extension .xlsx are skipped.","Los archivos que no tienen la extensión .xlsx se omiten.","I file che non hanno l'estensione .xlsx vengono ignorati.","Les fichiers qui n'ont pas l'extension .xlsx sont ignorés.","Dateien, die nicht die Endung .xlsx haben, werden übersprungen.","Bestanden die niet de extensie .xlsx hebben, worden overgeslagen."]
[null,null,null,null,0]
[null,null,null,null,0]
[null,null,null,null,"When the files are read in, a list of the successfully read files appears on the right.","When the files are read in, a list of the successfully read files appears on the right.","Cuando se leen los archivos, aparece a la derecha una lista de los archivos leídos correctamente.","Quando i file vengono letti, sulla destra viene visualizzato un elenco dei file letti correttamente.","Lorsque les fichiers sont lus, une liste des fichiers lus avec succès apparaît sur la droite.","Beim Einlesen der Dateien erscheint rechts eine Liste der erfolgreich eingelesenen Dateien.","Tijdens het inlezen ervan, verschijnt rechts een lijst van succesvol ingeladen bestanden."]
[null,null,null,null,"The 'Reset' button is only required in an emergency if the START button is deactivated due to an unforeseen error.","The 'Reset' button is only required in an emergency if the START button is deactivated due to an unforeseen error.","El botón 'Reiniciar' solo es necesario en caso de emergencia si el botón START se desactiva debido a un error imprevisto.","Il pulsante 'Reset' è necessario solo in caso di emergenza se il pulsante START è disattivato a causa di un errore imprevisto.","Le bouton 'Reset' n'est requis qu'en cas d'urgence si le bouton START est désactivé en raison d'une erreur imprévue.","Der Button 'Reset' wird nur im Notfall benötigt, wenn durch einen unvorhergesehenen Error der START-Button deaktiviert sein sollte.","De knop 'Reset' is slechts bedoeld voor noodgevallen, zoals een gedeactiveerde START-knop door een onvoorziene fout. "]
[null,null,null,null,"yes","yes","sí","sì","oui","ja","ja"]
[null,null,null,null,"no","no","no","no","non","nein","nee"]
[null,null,null,null,0]
[null,null,null,null,0]
[null,null,null,null,0]
[null,null,null,null,"Skipped:","Skipped:","Salteado:","Saltato:","Ignoré :","Übersprungen:","Overgeslagen:"]
[null,null,null,null,"ATTENTION:\nIf you click on 'START', all Excel files that are still open will be closed without saving!","ATTENTION:\nIf you click on 'START', all Excel files that are still open will be closed without saving!","ATENCIÓN:\nSi hace clic en 'INICIO', todos los archivos de Excel que aún estén abiertos se cerrarán sin guardar.","ATTENZIONE:\nSe clicchi su 'START', tutti i file Excel ancora aperti verranno chiusi senza salvare!","ATTENTION :\nSi vous cliquez sur 'START', tous les fichiers Excel encore ouverts seront fermés sans sauvegarde !","ACHTUNG:\nBeim Klick auf 'START' werden alle noch offenen Exceldateien ohne Speichern geschlossen!","OPGELET:\nAls u op 'START' klikt, worden alle niet opgeslagen Excel-bestanden afgesloten!"]
[null,null,null,null,0]
[null,null,null,null,0]
[null,null,null,null,0]
[null,null,null,null,0]
[null,null,null,null,0]
[null,null,null,null,0]
[null,null,null,null,0]
[null,null,null,null,0]
[null,null,null,null,0]

{"sheet":"Help","index":3,"n_rows":12,"n_cols":2,"rows_kept":12,"cut":false,"hidden":false,"merged":[]}
[null,{"$f":"Language!E6","v":"Instructions"}]
[]
[]
[]
[null,"1."]
[null,{"$f":"Language!E41","v":"If the files are in a separate folder, the path of the folder must be specified - either as an absolute path (e.g. 'D:\\My Documents\\Excel') or as a relative path (e.g '..\\Data\\excel') or as a network path (e.g. '//host/data/excel/')."}]
[null,"2."]
[null,{"$f":"Language!E42","v":"Files that do not have the extension .xlsx are skipped."}]
[null,"3."]
[null,{"$f":"Language!E45","v":"When the files are read in, a list of the successfully read files appears on the right."}]
[null,"4."]
[null,{"$f":"Language!E46","v":"The 'Reset' button is only required in an emergency if the START button is deactivated due to an unforeseen error."}]